bitfinex-derivatives/quotes_ETHF0:USTF0_20250220
["timestamp","ask_amount","ask_price","bid_price","bid_amount"]
[1740046309312,1.30241,2732.5,2732.4,0.40292]
[1740046312312,1.30241,2732.5,2732.4,0.94702]
[1740046313007,0.73191,2732.5,2732.4,0.94702]
[1740046313207,0.5498,2732.6,2732.4,1.67895]
[1740046313409,0.73189,2732.6,2732.4,0.94702]
[1740046313715,0.737363,2732.7,2732.6,0.73188]
[1740046314015,0.737363,2732.7,2732.5,0.7319]
[1740046314413,0.73188,2732.6,2732.5,0.7319]
[1740046315520,0.005493,2732.7,2732.4,3.26602]
[1740046315710,0.73188,2732.6,2732.5,0.73191]
[1740046316113,0.005493,2732.7,2732.4,3.26602]
[1740046316321,0.73191,2732.5,2732.4,3.26602]
[1740046318325,0.73191,2732.5,2732.4,2.72192]
[1740046318523,0.73191,2732.5,2732.4,0.40292]
[1740046334240,3.93971,2732.5,2732.4,0.40292]
[1740046342232,6.25871,2732.5,2732.4,0.40292]
[1740046342542,6.25871,2732.5,2732.2,0.005493]
[1740046342543,11.5268,2732.5,2732.2,0.005493]
[1740046342735,0.73196,2732.3,2732.2,0.005493]
[1740046345440,3.93976,2732.3,2732.2,0.005493]
[1740046346539,0.73196,2732.3,2732.2,0.005493]
[1740046346842,3.93976,2732.3,2732.2,0.005493]
[1740046347144,3.93976,2732.3,2732.2,3e-06]
[1740046349651,9.93976,2732.3,2732.2,3e-06]
[1740046351846,9.2078,2732.3,2731.6,1.1353]
[1740046352043,3.93993,2731.7,2731.6,1.1353]
[1740046359446,0.73213,2731.7,2731.6,1.1353]
[1740046359750,3.93993,2731.7,2731.6,1.1353]
[1740046359947,0.73213,2731.7,2731.6,1.1353]
[1740046392767,1.6793,2731.7,2731.6,1.1353]
[1740046398770,3.9993,2731.7,2731.6,1.1353]
[1740046402182,1.6793,2731.7,2731.6,1.1353]
[1740046402380,3.9993,2731.7,2731.6,1.1353]
[1740046408289,1.6793,2731.7,2731.6,1.1353]
[1740046408484,3.2078,2731.8,2731.6,1.1353]
[1740046415001,3.2078,2731.8,2731.6,1.1353]
[1740046415399,4.79013,2732.0,2731.6,1.1353]
[1740046415694,0.73214,2731.7,2731.6,1.1353]
[1740046416290,7.99783,2732.2,2731.6,1.1353]
[1740046416491,4.79003,2732.2,2731.6,1.1353]
[1740046416690,3.2078,2732.2,2731.6,1.1353]
[1740046416897,3.2078,2732.2,2731.6,0.73214]
[1740046417094,3.2078,2732.2,2731.5,3.2078]
[1740046417095,0.73214,2731.7,2731.5,3.2078]
[1740046417292,3.2078,2732.2,2731.6,0.73213]
[1740046417500,3.2078,2732.2,2731.5,3.2078]
[1740046417701,0.73213,2731.7,2731.5,44.73996]
[1740046417895,0.73213,2731.7,2731.6,2.32]
[1740046418998,0.73213,2731.7,2731.6,2.8939]
[1740046422396,0.73213,2731.7,2731.6,3.62605]
[1740046422795,0.73213,2731.7,2731.6,2.8939]
[1740046426806,0.73213,2731.7,2731.6,3.62605]
[1740046427196,0.73213,2731.7,2731.6,0.5739]
[1740046427405,1.1593,2732.0,2731.6,0.5739]
[1740046427604,0.7321,2731.8,2731.7,0.5835]
[1740046433004,3.2078,2732.2,2731.8,0.73208]
[1740046433303,0.73206,2732.0,2731.8,0.73207]
[1740046433509,0.73206,2732.0,2731.9,0.563]
[1740046434902,3.2078,2732.2,2731.7,0.5835]
[1740046435105,3.2078,2732.2,2731.7,1.1465]
[1740046435106,0.7321,2731.8,2731.7,1.1465]
[1740046437906,0.7321,2731.8,2731.7,1.87863]
[1740046440004,0.7321,2731.8,2731.7,1.1465]
[1740046441005,0.5876,2732.0,2731.6,2.322]
[1740046441213,1.88073,2731.7,2731.6,2.322]
[1740046441812,0.73215,2731.6,2731.5,6.6586]
[1740046442004,1.1486,2731.7,2731.4,0.005493]
[1740046442206,0.73218,2731.5,2731.4,0.005493]
[1740046443206,0.73218,2731.5,2731.4,0.575793]
[1740046445113,0.73218,2731.5,2731.4,0.005493]
[1740046454818,0.73218,2731.5,2731.4,0.582993]
[1740046455216,1.1486,2731.7,2731.4,0.582993]
[1740046455416,1.29985,2731.7,2731.6,0.73215]
[1740046455717,0.73215,2731.6,2731.5,1.86175]
[1740046456321,0.73215,2731.6,2731.5,1.1296]
[1740046457623,0.73215,2731.6,2731.5,1.86178]
[1740046457817,0.73215,2731.6,2731.5,1.1296]
[1740046460519,0.5677,2731.7,2731.4,0.582993]
[1740046460724,0.73218,2731.5,2731.4,0.582993]
[1740046462127,0.73218,2731.5,2731.4,0.005493]
[1740046489157,0.73218,2731.5,2731.4,0.597293]
[1740046497066,0.73218,2731.5,2731.4,0.005493]
[1740046500158,0.73218,2731.5,2731.4,3e-06]
[1740046511271,4.15021,2731.9,2731.4,3e-06]
[1740046511272,2.32,2731.9,2731.4,3e-06]
[1740046511474,0.73215,2731.7,2731.5,0.73217]
[1740046511680,0.73213,2731.7,2731.6,1.137]
[1740046514478,3.2078,2732.2,2731.6,1.137]
[1740046514685,3.2078,2732.2,2731.7,0.5432]
[1740046514686,0.7321,2731.8,2731.7,0.5432]
[1740046516777,0.7321,2731.8,2731.7,1.27533]
[1740046517182,0.7321,2731.8,2731.7,0.5432]
[1740046518282,0.7321,2731.8,2731.7,1.27533]
[1740046521092,0.7321,2731.8,2731.7,4.48313]
[1740046526587,3.2078,2732.4,2731.7,6.07]
[1740046526785,0.73207,2732.0,2731.9,0.73206]
[1740046527290,0.73206,2732.0,2731.9,0.73205]
[1740046527990,0.73204,2732.1,2732.0,0.73203]
[1740046528894,0.73206,2732.0,2731.9,0.73206]
[1740046529396,2.36621,2732.5,2731.7,6.07]
[1740046529595,0.73204,2732.1,2732.0,3.93983]
[1740046530491,2.36621,2732.5,2732.0,3.2078]
[1740046530692,0.73201,2732.2,2732.1,1.881]
[1740046531294,0.73201,2732.2,2732.1,1.149]
[1740046531482,3.213293,2732.7,2732.1,3.468]
[1740046531684,0.73188,2732.6,2732.1,3.468]
[1740046531887,0.73188,2732.6,2732.4,0.73192]
[1740046532194,0.73188,2732.6,2732.5,1.8809]
[1740046532991,0.005493,2732.7,2732.5,1.149]
[1740046532992,0.737373,2732.7,2732.5,1.149]
[1740046533298,0.005493,2732.7,2732.6,0.73188]
[1740046533493,0.005493,2732.7,2732.6,3.05088]
[1740046535389,0.005493,2732.7,2732.6,43.85088]
[1740046535596,0.005493,2732.7,2732.6,49.85088]
[1740046535784,0.73173,2733.2,2733.0,0.73177]
[1740046536095,0.73173,2733.2,2733.1,1.1335]
[1740046536688,1.1116,2733.7,2733.1,4.3413]
[1740046536993,0.005493,2733.4,2733.3,0.7317]
[1740046543095,0.005493,2733.4,2733.3,3.9395]
[1740046545306,0.737163,2733.4,2733.3,3.2078]
[1740046545504,0.737163,2733.4,2733.3,3.9395]
[1740046546903,0.737163,2733.4,2733.3,3.2078]
[1740046547509,0.737163,2733.4,2733.3,3.9395]
[1740046549504,0.005493,2733.4,2733.3,3.9395]
[1740046550711,0.737163,2733.4,2733.3,3.9395]
[1740046552909,0.005493,2733.4,2733.3,3.2078]
[1740046553109,0.005493,2733.4,2733.1,3.05173]
[1740046553417,0.73171,2733.3,2733.2,3.93951]
[1740046553710,0.005493,2733.4,2733.2,3.93951]
[1740046553903,0.005493,2733.4,2733.3,0.7317]
[1740046555210,0.737173,2733.4,2733.3,0.7317]
[1740046556414,0.005493,2733.4,2733.3,0.7317]
[1740046556614,0.737163,2733.4,2733.3,0.7317]
[1740046557013,0.005493,2733.4,2733.2,3.2078]
[1740046557213,0.005493,2733.4,2733.1,0.5431]
[1740046557425,0.005493,2733.4,2733.2,2.321]
[1740046557618,0.73171,2733.3,2733.2,3.05272]
[1740046557818,0.5869,2733.3,2733.1,0.5431]
[1740046558022,0.73178,2733.0,2732.9,2.328493]
[1740046560018,0.73178,2733.0,2732.9,0.005493]
[1740046570124,0.73178,2733.0,2731.1,3.44095952]
[1740046570125,0.73197,2732.3,2732.2,3.2078]
[1740046570418,0.73197,2732.3,2732.2,44.0078]
[1740046572128,0.73196,2732.3,2732.2,44.73978]
[1740046572422,0.73196,2732.3,2732.2,44.0078]
[1740046575521,0.73196,2732.3,2732.2,44.73979]
[1740046576526,0.73196,2732.3,2732.2,44.0078]
[1740046577025,0.73196,2732.3,2732.2,44.73979]
[1740046580727,3.2078,2733.1,2732.2,44.0078]
[1740046580920,1.0884,2733.0,2732.6,0.73188]
[1740046581124,1.6508,2733.0,2732.7,1.6267]
[1740046581429,0.73183,2732.8,2732.7,1.6267]
[1740046581624,1.6508,2733.0,2732.7,1.6267]
[1740046581830,0.73177,2733.1,2732.9,3.2078]
[1740046582022,0.005493,2733.4,2733.0,40.8]
[1740046582222,0.737173,2733.4,2733.2,0.73172]
[1740046582426,0.737173,2733.4,2733.3,0.5565]
[1740046582622,0.005493,2733.4,2733.3,3.4621]
[1740046582821,0.005493,2733.4,2733.3,7.4016]
[1740046583219,0.005493,2733.4,2733.3,6.6699]
[1740046583423,0.005493,2733.4,2733.3,7.4016]
[1740046587934,0.005493,2733.4,2733.3,48.2016]
[1740046588527,0.005493,2733.4,2733.3,7.4016]
[1740046591335,0.005493,2733.4,2733.3,4.1938]
[1740046591537,0.005493,2733.4,2733.3,7.4016]
[1740046594533,0.737163,2733.4,2733.3,7.4016]
[1740046594930,0.005493,2733.4,2733.3,7.4016]
[1740046598838,0.005493,2733.4,2733.3,7.3946]
[1740046600438,0.005493,2733.4,2733.3,4.1868]
[1740046600646,0.005493,2733.4,2733.3,7.3946]
[1740046601543,0.005493,2733.4,2733.3,4.1868]
[1740046601843,0.005493,2733.4,2733.3,7.3946]
[1740046605742,1.6403,2734.0,2733.3,7.3946]
[1740046606043,1.6403,2734.0,2733.9,0.73154]
[1740046606238,0.5602,2734.0,2733.9,0.73154]
[1740046606635,0.5602,2734.0,2733.9,1.30744]
[1740046607141,0.5602,2734.0,2733.9,4.51524]
[1740046608235,0.736963,2734.2,2733.9,3.7837]
[1740046608442,1.318663,2734.2,2734.0,0.7315]
[1740046608642,0.587193,2734.2,2733.9,4.3391]
[1740046608945,1.318663,2734.2,2734.0,0.73149]
[1740046609447,0.005493,2734.2,2733.9,4.3391]
[1740046609649,0.005493,2734.2,2734.1,0.73148]
[1740046611147,0.005493,2734.2,2734.1,41.53148]
[1740046612147,0.005493,2734.2,2734.1,0.73148]
[1740046622455,2.37285,2734.6,2734.5,0.73138]
[1740046622846,2.37285,2734.6,2734.4,2.317]
[1740046623046,0.73132,2734.8,2734.4,2.317]
[1740046623249,0.73128,2734.9,2734.7,0.7313]
[1740046624045,1.1252,2735.0,2734.9,0.73127]
[1740046624248,1.85646,2735.0,2734.8,3.04828]
[1740046624958,1.1252,2735.0,2734.8,3.04828]
[1740046625363,0.73127,2734.9,2734.8,2.317]
[1740046625653,0.73127,2734.9,2734.8,3.0483]
[1740046625849,0.73127,2734.9,2734.8,2.317]
[1740046626655,0.73127,2734.9,2734.8,3.0483]
[1740046626857,0.73127,2734.9,2734.8,2.317]
[1740046631356,1.1252,2735.0,2734.7,3.2078]
[1740046631549,0.7313,2734.8,2734.7,3.2078]
[1740046631753,0.7313,2734.8,2734.7,5.5248]
[1740046634058,0.7313,2734.8,2734.7,3.2078]
[1740046634457,0.7313,2734.8,2734.7,3.93912]
[1740046634657,0.7313,2734.8,2734.7,3.2078]
[1740046634961,0.7313,2734.8,2734.7,3.93912]
[1740046637265,0.7313,2734.8,2734.7,0.73132]
[1740046637469,0.73132,2734.7,2734.6,6.25613]
[1740046637768,0.5893,2734.7,2734.5,0.73137]
[1740046637963,0.73135,2734.6,2734.5,2.317]
[1740046638169,0.73135,2734.6,2734.5,3.04838]
[1740046639264,0.73135,2734.6,2734.5,2.317]
[1740046639979,0.73135,2734.6,2734.5,3.04838]
[1740046640472,0.5893,2734.7,2734.6,0.73135]
[1740046640671,0.73131,2734.8,2734.7,0.7313]
[1740046640974,0.73131,2734.8,2734.7,4.5224]
[1740046641168,0.73131,2734.8,2734.7,3.7911]
[1740046643767,0.73131,2734.8,2734.7,4.52242]
[1740046643967,0.73131,2734.8,2734.7,3.7911]
[1740046645073,0.73131,2734.8,2734.7,4.52242]
[1740046645272,0.00549,2735.1,2734.7,3.7911]
[1740046645470,0.73125,2735.0,2734.9,0.73126]
[1740046645670,0.73125,2735.0,2734.9,3.04926]
[1740046646369,0.73125,2735.0,2734.9,2.318]
[1740046648170,0.73125,2735.0,2734.9,3.04927]
[1740046648968,0.73125,2735.0,2734.9,2.318]
[1740046651265,0.73127,2734.9,2734.8,3.2078]
[1740046651471,1.29067,2734.9,2734.8,3.2078]
[1740046651675,1.29067,2734.9,2734.8,3.9391]
[1740046652068,1.29067,2734.9,2734.8,3.2078]
[1740046652377,1.29067,2734.9,2734.8,3.9391]
[1740046652873,0.54679,2735.1,2734.8,3.2078]
[1740046653074,0.73126,2735.0,2734.9,0.73126]
[1740046653274,0.73127,2734.9,2734.8,3.93908]
[1740046653666,0.73126,2735.0,2734.9,0.73126]
[1740046653867,0.73127,2734.9,2734.8,3.93908]
[1740046655875,0.73127,2734.9,2734.8,3.2078]
[1740046656077,0.73127,2734.9,2734.8,3.9391]
[1740046656578,0.73127,2734.9,2734.8,3.2078]
[1740046656773,0.54679,2735.1,2734.8,3.9391]
[1740046656973,0.73124,2735.0,2734.8,3.93908]
[1740046657370,0.54679,2735.1,2734.8,3.93908]
[1740046657574,0.73127,2734.9,2734.8,3.93908]
[1740046657878,0.73125,2735.0,2734.9,0.73126]
[1740046658175,0.73124,2735.0,2734.9,0.73125]
[1740046658573,0.54679,2735.1,2734.8,3.2078]
[1740046658879,0.73127,2734.9,2734.8,3.93909]
[1740046659373,0.73127,2734.9,2734.8,5.5238]
[1740046660468,0.54679,2735.1,2734.7,2.316]
[1740046660671,1.1333,2734.8,2734.5,3.2078]
[1740046660875,0.73135,2734.6,2734.5,5.5248]
[1740046661070,0.73135,2734.6,2734.5,2.317]
[1740046661276,0.73135,2734.6,2734.5,3.04838]
[1740046662380,0.5603,2734.7,2734.4,0.73139]
[1740046662679,0.7314,2734.4,2734.3,1.86243]
[1740046662883,0.7314,2734.4,2734.3,4.17843]
[1740046663069,0.5603,2734.7,2734.3,3.447]
[1740046663269,0.7314,2734.5,2734.3,4.17841]
[1740046663774,0.5603,2734.7,2734.3,4.17841]
[1740046664278,0.5603,2734.7,2734.3,3.447]
[1740046664473,0.7314,2734.5,2734.3,4.17841]
[1740046666182,0.5603,2734.7,2734.5,0.73136]
[1740046666376,0.73135,2734.6,2734.4,0.73139]
[1740046666773,0.5603,2734.7,2734.4,0.73139]
[1740046666977,0.5603,2734.7,2734.3,3.447]
[1740046666978,0.73139,2734.5,2734.3,4.17841]
[1740046667682,0.73143,2734.3,2734.2,3.93924]
[1740046667887,0.73143,2734.3,2734.2,6.79374]
[1740046668282,1.26723,2734.3,2734.2,6.79374]
[1740046668981,0.5358,2734.3,2734.2,6.79374]
[1740046669686,0.73138,2734.5,2734.3,0.73143]
[1740046670584,1.1734,2734.7,2734.3,0.73143]
[1740046671083,0.7314,2734.4,2734.3,0.73143]
[1740046671478,1.1734,2734.7,2734.3,0.73143]
[1740046671779,0.7314,2734.5,2734.3,0.73143]
[1740046672283,0.7314,2734.4,2734.3,0.73143]
[1740046672484,0.7314,2734.4,2734.2,6.0623]
[1740046672485,0.73139,2734.5,2734.4,0.7314]
[1740046672783,0.73139,2734.5,2734.3,0.73141]
[1740046672984,0.7314,2734.4,2734.3,0.73141]
[1740046673684,1.1734,2734.7,2734.2,6.0623]
[1740046673883,0.7314,2734.4,2734.3,0.73142]
[1740046674682,0.73139,2734.5,2734.4,0.7314]
[1740046675086,0.73141,2734.4,2734.3,0.73142]
[1740046675482,0.73143,2734.3,2734.2,6.79374]
[1740046676481,0.73141,2734.4,2734.3,0.73142]
[1740046676889,3.00173,2734.7,2734.2,6.79374]
[1740046676890,0.73143,2734.3,2734.2,6.79374]
[1740046677189,3.00173,2734.7,2734.2,6.79373]
[1740046677687,0.73143,2734.4,2734.3,0.73142]
[1740046678189,0.73143,2734.3,2734.2,6.79374]
[1740046678389,0.73141,2734.4,2734.3,0.73142]
[1740046679088,0.73143,2734.3,2734.2,6.79374]
[1740046679289,3.00173,2734.7,2734.2,6.0623]
[1740046679490,0.73143,2734.4,2734.3,0.73142]
[1740046680889,0.73142,2734.4,2734.3,0.73142]
[1740046682289,1.1734,2734.7,2734.2,6.0623]
[1740046682487,0.73141,2734.4,2734.3,0.73142]
[1740046683393,0.73141,2734.4,2734.2,6.79374]
[1740046683990,0.7314,2734.4,2734.3,0.73142]
[1740046684189,1.1734,2734.7,2734.2,6.0623]
[1740046684388,0.73141,2734.4,2734.3,0.73141]
[1740046684894,1.1734,2734.7,2734.2,6.0623]
[1740046685095,0.73143,2734.3,2734.2,6.79373]
[1740046685492,3.00173,2734.7,2734.2,6.79373]
[1740046685797,0.73143,2734.3,2734.2,6.79373]
[1740046686191,3.00173,2734.7,2734.2,6.79373]
[1740046686391,3.00173,2734.7,2734.2,5.5248]
[1740046686695,0.73143,2734.3,2734.2,5.5248]
[1740046688197,0.73143,2734.3,2734.2,6.25626]
[1740046688498,3.00173,2734.7,2734.2,5.5248]
[1740046688696,0.73143,2734.4,2734.2,6.25624]
[1740046688895,1.1734,2734.7,2734.2,5.5248]
[1740046689101,1.1734,2734.7,2734.2,6.25624]
[1740046689591,0.73142,2734.4,2734.2,6.25624]
[1740046689794,1.1734,2734.7,2734.2,6.25624]
[1740046690298,0.73142,2734.4,2734.2,6.25624]
[1740046692199,0.73143,2734.3,2734.2,6.25624]
[1740046692897,0.73142,2734.4,2734.2,6.25624]
[1740046693099,0.73142,2734.4,2734.3,0.73143]
[1740046693900,0.73143,2734.3,2734.2,6.25624]
[1740046694502,3.00174,2734.7,2734.2,5.5248]
[1740046694707,0.73143,2734.3,2734.2,6.25624]
[1740046696700,3.00174,2734.7,2734.2,5.5248]
[1740046697094,0.73142,2734.4,2734.3,0.73142]
[1740046698097,3.00174,2734.7,2734.2,5.5248]
[1740046698297,0.73142,2734.4,2734.3,0.73143]
[1740046698803,0.73142,2734.4,2734.3,1.29783]
[1740046699398,0.73142,2734.4,2734.3,1.86133]
[1740046699595,0.00549,2735.1,2734.3,1.1299]
[1740046699903,0.00549,2735.1,2734.8,3.2078]
[1740046700103,0.73126,2735.0,2734.9,0.5913]
[1740046700503,1.26596,2735.0,2734.9,1.32257]
[1740046700702,1.26596,2735.0,2734.9,0.5913]
[1740046700703,0.5347,2735.0,2734.9,0.5913]
[1740046700904,0.5347,2735.0,2734.9,1.32257]
[1740046701097,0.5347,2735.0,2734.9,0.5913]
[1740046701503,1.26594,2735.0,2734.9,0.5913]
[1740046704404,0.5347,2735.0,2734.5,3.2078]
[1740046704609,0.7314,2734.5,2734.4,2.317]
[1740046707314,0.73133,2734.7,2734.5,0.73135]
[1740046707505,0.73133,2734.7,2734.6,1.109]
[1740046708612,0.73135,2734.6,2734.5,3.2078]
[1740046708908,1.27005,2734.6,2734.5,3.93918]
[1740046709108,0.00549,2735.1,2734.8,0.73128]
[1740046709305,0.73128,2734.9,2734.8,3.93908]
[1740046709707,0.73128,2734.9,2734.8,44.73908]
[1740046710011,0.73128,2734.9,2734.8,3.2078]
[1740046712314,0.57289,2735.1,2734.4,7.36519]
[1740046712512,0.73137,2734.6,2734.5,1.27248]
[1740046712703,1.1801,2734.8,2734.4,6.0647]
[1740046712910,1.27308,2734.5,2734.4,6.0647]
[1740046713412,1.27308,2734.5,2734.4,6.7961]
[1740046714014,1.27308,2734.5,2734.4,6.0647]
[1740046714516,1.27308,2734.5,2734.4,6.7961]
[1740046715115,1.27308,2734.5,2734.4,6.0647]
[1740046715510,1.1801,2734.8,2734.4,6.7961]
[1740046715721,0.73135,2734.6,2734.5,1.172]
[1740046722716,0.73135,2734.6,2734.5,1.90338]
[1740046722919,0.5377,2734.9,2734.5,1.172]
[1740046723225,4.31389,2735.1,2734.6,0.73133]
[1740046723522,0.73132,2734.7,2734.6,0.73133]
[1740046724228,0.73132,2734.7,2734.5,1.172]
[1740046724523,0.5377,2735.0,2734.5,1.172]
[1740046724825,0.73135,2734.6,2734.5,1.172]
[1740046725422,0.73135,2734.6,2734.5,1.90338]
[1740046725718,0.73135,2734.6,2734.5,1.172]
[1740046733019,0.73135,2734.6,2734.5,0.5893]
[1740046733226,3.2078,2734.8,2734.4,0.5399]
[1740046733421,0.73138,2734.5,2734.4,0.5399]
[1740046743632,5.04136,2735.1,2734.4,0.5399]
[1740046743840,0.73135,2734.6,2734.5,1.31856]
[1740046744039,1.152,2735.0,2734.5,0.5872]
[1740046744237,0.73132,2734.7,2734.6,0.5544]
[1740046745139,0.73132,2734.7,2734.6,3.7622]
[1740046746139,0.73132,2734.7,2734.6,4.49355]
[1740046746636,0.73132,2734.7,2734.6,3.7622]
[1740046746837,0.73132,2734.7,2734.6,4.49355]
[1740046747839,0.73132,2734.7,2734.6,3.7622]
[1740046750639,0.73132,2734.7,2734.6,3.2078]
[1740046751240,0.73132,2734.7,2734.3,2.316]
[1740046751241,0.73142,2734.4,2734.3,3.93923]
[1740046751538,0.73142,2734.4,2734.3,6.108]
[1740046751741,0.73142,2734.4,2734.3,3.792]
[1740046751951,0.73142,2734.4,2734.3,3.2078]
[1740046752147,3.2078,2734.5,2733.8,2.46455]
[1740046752344,1.82851,2734.4,2734.0,2.316]
[1740046752740,0.5886,2734.3,2734.0,2.316]
[1740046752941,0.73148,2734.1,2734.0,2.316]
[1740046753250,0.73147,2734.2,2734.1,0.73148]
[1740046754649,0.5886,2734.3,2734.1,0.73148]
[1740046754948,0.5886,2734.3,2734.0,5.5238]
[1740046755146,0.73147,2734.2,2734.0,6.25529]
[1740046755341,0.73147,2734.2,2734.0,5.5238]
[1740046755548,0.564,2734.5,2734.0,5.5238]
[1740046755747,0.73148,2734.1,2734.0,5.5238]
[1740046756353,0.73148,2734.1,2734.0,6.25531]
[1740046756755,0.73148,2734.1,2734.0,5.5238]
[1740046757153,0.73148,2734.2,2734.0,6.2553]
[1740046757451,0.5616,2734.4,2734.0,6.2553]
[1740046757753,0.73148,2734.1,2734.0,6.2553]
[1740046759047,0.73147,2734.2,2734.1,0.73148]
[1740046759658,0.73147,2734.2,2734.0,5.5238]
[1740046759847,0.73144,2734.3,2734.2,0.73145]
[1740046761062,0.73144,2734.3,2734.0,5.5238]
[1740046761255,0.73144,2734.3,2734.1,0.73146]
[1740046761456,0.73144,2734.3,2734.2,1.1224]
[1740046761656,0.73144,2734.3,2734.2,1.85386]
[1740046762562,0.73143,2734.3,2734.2,1.85386]
[1740046763164,0.73143,2734.3,2734.2,1.1224]
[1740046764162,0.73148,2734.1,2734.0,3.9393]
[1740046764363,0.73148,2734.1,2734.0,6.2563]
[1740046767370,0.5616,2734.4,2734.0,6.2563]
[1740046767563,0.73147,2734.2,2734.0,5.5248]
[1740046768258,0.73148,2734.1,2734.0,6.25629]
[1740046768860,0.73147,2734.2,2734.0,6.25629]
[1740046769070,0.5616,2734.4,2734.0,6.25629]
[1740046769269,0.5616,2734.4,2734.1,0.73148]
[1740046769470,0.73147,2734.2,2734.1,0.73148]
[1740046769670,0.73147,2734.2,2734.0,6.25629]
[1740046769976,0.5616,2734.4,2734.0,6.25629]
[1740046770167,0.73148,2734.1,2734.0,6.25629]
[1740046770959,0.5616,2734.4,2734.0,5.5248]
[1740046771163,0.73148,2734.2,2734.0,5.5248]
[1740046771368,0.73147,2734.2,2734.1,0.73147]
[1740046771568,0.73145,2734.3,2734.2,0.73145]
[1740046771768,0.5616,2734.4,2734.0,5.5248]
[1740046772170,0.73147,2734.2,2734.1,0.73147]
[1740046772371,0.5616,2734.4,2734.1,0.73148]
[1740046772570,0.73146,2734.2,2734.1,0.73148]
[1740046774072,0.73145,2734.3,2734.2,0.73145]
[1740046774373,0.73146,2734.2,2734.1,0.73147]
[1740046776071,0.5616,2734.4,2734.0,5.5248]
[1740046776368,2.96,2734.7,2734.6,0.73135]
[1740046776572,0.73131,2734.8,2734.6,0.73133]
[1740046776873,0.73133,2734.7,2734.5,0.73136]
[1740046777471,0.5814,2734.9,2734.5,0.73136]
[1740046777472,0.73135,2734.6,2734.5,0.73136]
[1740046778272,0.5814,2734.9,2734.5,0.73136]
[1740046778475,0.73134,2734.7,2734.5,0.73136]
[1740046778778,0.73135,2734.6,2734.5,0.73136]
[1740046779076,0.73134,2734.7,2734.5,0.73136]
[1740046779276,0.5814,2734.9,2734.4,5.5248]
[1740046779477,0.73138,2734.5,2734.4,5.5248]
[1740046780372,0.73138,2734.5,2734.4,6.2562]
[1740046781379,0.5814,2734.9,2734.4,6.2562]
[1740046781574,0.73138,2734.5,2734.4,6.2562]
[1740046782378,0.73138,2734.5,2734.4,5.5248]
[1740046782973,0.73138,2734.5,2734.4,6.2562]
[1740046783280,0.73138,2734.5,2734.4,5.5248]
[1740046784280,0.73138,2734.5,2734.4,6.2562]
[1740046786078,0.73138,2734.5,2734.4,5.5248]
[1740046787385,0.73138,2734.5,2734.4,6.2562]
[1740046787683,0.73138,2734.5,2734.4,5.5248]
[1740046787882,0.73138,2734.5,2734.4,6.2562]
[1740046791897,0.73137,2734.6,2734.5,0.73137]
[1740046792191,0.5814,2734.9,2734.4,5.5248]
[1740046792391,0.73138,2734.5,2734.4,6.25618]
[1740046795787,0.73137,2734.6,2734.5,0.73136]
[1740046796692,2.40962,2734.9,2734.4,5.5248]
[1740046796991,0.73138,2734.5,2734.4,6.25618]
[1740046797391,0.73137,2734.6,2734.5,0.73137]
[1740046798085,0.73138,2734.5,2734.4,6.25618]
[1740046799695,0.73138,2734.5,2734.4,5.5248]
[1740046800089,0.73138,2734.5,2734.4,6.2562]
[1740046800494,0.73138,2734.5,2734.4,5.5248]
[1740046800690,0.73138,2734.5,2734.4,3.2078]
[1740046800891,0.73138,2734.5,2734.2,1.107]
[1740046800892,0.73153,2734.0,2733.9,3.2078]
[1740046802188,0.5642,2734.4,2734.1,0.73147]
[1740046802391,1.1386,2734.4,2734.1,0.73147]
[1740046802693,1.1386,2734.4,2734.2,0.5854]
[1740046802895,0.73143,2734.3,2734.2,0.5854]
[1740046804496,1.1386,2734.4,2734.1,0.535]
[1740046804699,0.73151,2734.1,2734.0,0.5899]
[1740046805296,1.32201,2734.1,2734.0,0.5899]
[1740046805494,0.5905,2734.1,2734.0,1.32141]
[1740046805796,1.32198,2734.1,2734.0,0.5899]
[1740046806499,0.5905,2734.1,2733.9,3.2078]
[1740046806798,1.27881,2734.0,2733.9,3.2078]
[1740046807296,0.73156,2733.8,2733.7,0.005493]
[1740046808398,0.73156,2733.8,2733.7,0.737083]
[1740046809992,0.73156,2733.8,2733.7,0.005493]
[1740046812093,0.5473,2734.0,2733.7,0.005493]
[1740046812302,0.73156,2733.8,2733.7,0.737073]
[1740046813495,0.73155,2733.9,2733.8,0.73155]
[1740046813702,0.5905,2734.1,2734.0,0.73151]
[1740046813898,1.32201,2734.1,2733.9,0.73152]
[1740046814099,1.32201,2734.1,2734.0,1.1118]
[1740046814302,0.5905,2734.1,2734.0,1.6613]
[1740046814598,0.5865,2734.2,2734.0,2.39281]
[1740046814794,0.73147,2734.2,2734.0,2.3928]
[1740046814996,0.73148,2734.1,2734.0,1.6613]
[1740046815396,3.5393,2734.3,2734.0,1.6613]
[1740046815597,3.5393,2734.3,2734.0,2.3928]
[1740046815901,0.73147,2734.2,2734.0,2.3928]
[1740046816101,0.5793,2734.3,2734.0,2.3928]
[1740046816302,0.5793,2734.3,2734.0,1.6613]
[1740046816496,0.73148,2734.2,2734.1,0.73148]
[1740046816805,0.73148,2734.1,2734.0,2.3928]
[1740046817005,0.5793,2734.3,2734.0,4.8691]
[1740046817206,1.31075,2734.3,2734.2,0.73146]